bitfinex/quotes_ETHUSD_20260216
["timestamp","ask_amount","ask_price","bid_price","bid_amount"]
[1771208968288,0.68,1959.8,1959.1,0.0011]
[1771208968592,0.01120015,1959.7,1959.1,0.0011]
[1771208969381,1.15897535,1959.8,1959.1,0.0011]
[1771208969610,0.46120518,1959.7,1959.1,0.0011]
[1771208969770,0.69120015,1959.8,1959.1,0.0011]
[1771208970298,0.46120518,1959.7,1959.1,0.0011]
[1771208970476,0.01120015,1959.6,1959.1,0.0011]
[1771208970681,0.46120518,1959.7,1959.1,0.0011]
[1771208970888,0.01120015,1959.6,1959.1,0.0011]
[1771208971076,0.47240533,1959.6,1959.1,0.0011]
[1771208972588,0.46120518,1959.6,1959.1,0.0011]
[1771208972787,0.01120015,1959.5,1959.1,0.0011]
[1771208973398,0.01120015,1959.7,1959.1,0.0011]
[1771208973800,0.47240533,1959.7,1959.1,0.0011]
[1771208974692,0.47240533,1959.7,1959.2,0.0011]
[1771208977289,0.46120518,1959.5,1959.2,0.0011]
[1771208977479,0.01120015,1959.4,1959.2,0.0011]
[1771208979932,0.01120015,1959.5,1959.2,0.0011]
[1771208980126,0.46120518,1959.4,1959.1,0.0011]
[1771208980280,0.46120518,1959.2,1959.1,0.0011]
[1771208982006,0.46120518,1959.2,1959.0,0.00131943]
[1771208982314,0.01120015,1959.1,1959.0,0.00131943]
[1771208983009,0.01120015,1959.1,1958.9,0.0011]
[1771208983314,0.01120015,1959.1,1958.3,0.31194462]
[1771208983514,0.48764589,1959.1,1958.3,0.31194462]
[1771208985724,0.48764589,1959.1,1957.4,15.79802568]
[1771208985725,0.4553949,1958.9,1957.6,0.31194462]
[1771208986407,0.46659505,1958.9,1957.6,0.31194462]
[1771208986990,0.4553949,1958.7,1957.1,0.31194462]
[1771208987193,9.11200164,1958.8,1957.0,1.11499216]
[1771208987194,0.4553949,1958.3,1957.0,1.11499216]
[1771208987398,9.00960164,1957.7,1957.0,1.11499216]
[1771208987595,6.49482659,1958.7,1957.0,1.11499216]
[1771208987596,0.679,1957.6,1957.0,1.11499216]
[1771208987803,0.4553949,1957.6,1957.0,1.11499216]
[1771208988123,0.68,1957.8,1957.0,1.11499216]
[1771208989237,0.4553949,1958.0,1957.0,1.11499216]
[1771208989430,1.1343949,1958.0,1957.0,1.43103678]
[1771208989739,0.679,1958.2,1957.1,0.31604462]
[1771208990052,1.1343949,1958.2,1957.1,0.31604462]
[1771208992047,0.4553949,1958.2,1957.2,0.31604462]
[1771208992411,0.69020015,1958.3,1957.2,0.31604462]
[1771208992821,0.01120015,1958.3,1957.4,0.31604462]
[1771208993419,0.01120015,1958.4,1957.5,0.31604462]
[1771208994536,0.01120015,1958.5,1957.5,0.31604462]
[1771208995538,0.01120015,1958.5,1957.6,0.31604462]
[1771208996549,0.01120015,1958.5,1957.7,0.31604462]
[1771208999513,0.01120015,1958.5,1957.8,0.31604462]
[1771208999714,0.01120015,1958.7,1957.8,0.31604462]
[1771208999916,0.46659505,1958.7,1957.8,0.31604462]
[1771209000374,0.46659505,1958.9,1957.8,0.31604462]
[1771209000551,0.00153886,1959.0,1958.3,0.31604462]
[1771209000855,0.001,1959.8,1958.9,0.31450576]
[1771209001036,0.001,1959.8,1959.0,0.31450576]
[1771209001754,0.001,1959.8,1959.2,0.31450576]
[1771209002418,0.4553949,1960.5,1959.5,0.31450576]
[1771209002653,0.00153886,1961.0,1959.8,0.31450576]
[1771209002868,0.45693376,1961.0,1960.1,9.00960164]
[1771209003145,0.45693376,1961.0,1959.7,0.875]
[1771209003528,0.4553949,1960.8,1959.7,0.875]
[1771209006046,0.00153886,1961.0,1959.8,0.31450576]
[1771209006249,0.45693376,1961.0,1959.8,0.31450576]
[1771209006646,0.45693376,1961.0,1959.9,0.31450576]
[1771209007022,0.45693376,1961.0,1960.0,9.3241074]
[1771209007224,0.45693376,1961.0,1959.8,1.27560774]
[1771209007422,0.45693376,1961.0,1959.9,0.31450576]
[1771209007841,0.45693376,1961.0,1960.2,9.3241074]
[1771209007842,0.00153886,1961.0,1960.2,9.3241074]
[1771209008153,0.4563949,1961.3,1960.6,0.3129669]
[1771209008154,0.001,1961.3,1960.6,0.3129669]
[1771209008328,0.4563949,1961.3,1960.3,0.877]
[1771209008854,0.001,1961.3,1960.4,0.3129669]
[1771209009038,0.4563949,1961.9,1960.6,0.3129669]
[1771209009236,0.4563949,1961.9,1960.7,0.877]
[1771209009454,0.4563949,1961.9,1960.8,9.00960164]
[1771209009749,0.4563949,1961.9,1960.7,0.877]
[1771209010849,0.4563949,1961.9,1960.5,10.28477569]
[1771209011052,0.4563949,1961.9,1960.8,0.878]
[1771209013540,0.46967335,1961.7,1960.8,0.878]
[1771209015071,0.46967335,1961.7,1960.2,1.275315]
[1771209015370,0.48087335,1961.6,1960.2,2.151315]
[1771209015571,0.48087335,1961.4,1960.1,0.0011]
[1771209015733,0.48087335,1961.4,1960.1,9.01070164]
[1771209015933,0.48087335,1961.4,1960.2,0.3241669]
[1771209016564,0.48087335,1961.4,1960.4,9.00960164]
[1771209016735,0.48087335,1961.4,1960.5,0.877]
[1771209018646,0.48087335,1961.7,1960.5,2.15212804]
[1771209018834,0.48087335,1961.7,1960.6,9.33376854]
[1771209019075,0.48087335,1961.7,1960.7,1.59922172]
[1771209019237,0.001,1961.8,1960.7,0.3241669]
[1771209019857,0.48187335,1961.8,1960.7,0.3241669]
[1771209020736,0.001,1961.8,1960.9,9.33376854]
[1771209021071,0.001,1961.8,1961.0,0.878]
[1771209021446,0.001,1961.8,1961.2,9.00960164]
[1771209022760,0.001,1961.8,1961.0,2.47701974]
[1771209023473,0.001,1961.8,1961.2,1.59889665]
[1771209023870,0.001,1961.8,1961.2,0.3241669]
[1771209024458,0.48187335,1961.8,1960.6,9.33376854]
[1771209024641,0.48187335,1961.8,1960.1,0.0011]
[1771209024642,0.48187335,1961.8,1960.3,0.918]
[1771209024848,0.48087335,1961.4,1960.3,0.918]
[1771209025985,0.48087335,1961.4,1960.1,0.8811]
[1771209025986,0.48087335,1961.2,1960.1,0.0011]
[1771209026347,0.48087335,1961.1,1960.1,0.0011]
[1771209028681,0.48087335,1961.1,1960.2,0.881]
[1771209029282,0.48087335,1961.1,1960.1,0.0011]
[1771209029942,0.48087335,1960.8,1960.1,0.0011]
[1771209030575,0.48087335,1960.5,1960.0,0.00263886]
[1771209030780,0.48087335,1960.4,1959.1,0.829]
[1771209031281,0.48241221,1960.0,1959.1,0.829]
[1771209031652,0.00153886,1960.0,1959.3,9.75087365]
[1771209031989,0.00153886,1960.0,1959.3,11.02683231]
[1771209032281,0.00153886,1960.0,1959.3,11.35099921]
[1771209033050,0.919,1960.5,1959.6,9.75087365]
[1771209033354,1.15241221,1961.0,1959.7,0.884]
[1771209033575,0.48087335,1960.9,1959.7,0.884]
[1771209034366,0.48087335,1960.9,1959.7,2.15967334]
[1771209034766,0.48087335,1960.7,1959.7,0.884]
[1771209036486,0.48087335,1960.7,1959.7,2.15969682]
[1771209036858,0.48087335,1960.7,1959.7,0.884]
[1771209037758,0.48087335,1960.7,1959.8,0.0011]
[1771209041268,0.7,1960.8,1959.8,0.0011]
[1771209042266,0.48087335,1960.7,1959.8,0.0011]
[1771209043177,0.7,1960.8,1959.8,0.0011]
[1771209043687,0.7,1960.8,1959.8,0.3252669]
[1771209045594,0.46472153,1960.7,1959.8,0.0011]
[1771209045783,0.46472153,1960.7,1959.9,0.899]
[1771209047591,0.46472153,1960.7,1959.8,0.0011]
[1771209048062,0.46472153,1960.6,1959.8,0.0011]
[1771209048257,0.46472153,1960.5,1959.8,0.0011]
[1771209048584,0.46472153,1960.4,1959.8,0.0011]
[1771209051694,0.46472153,1960.3,1959.8,0.0011]
[1771209054771,0.46472153,1960.2,1959.7,0.0011]
[1771209056094,0.46472153,1960.0,1959.5,0.0011]
[1771209056294,0.46472153,1959.8,1959.5,0.0011]
[1771209056865,0.46472153,1960.1,1959.5,0.0011]
[1771209061987,0.46472153,1960.1,1959.6,0.0011]
[1771209067132,0.46472153,1959.8,1959.3,0.0011]
[1771209067414,9.75087365,1959.9,1959.0,0.00153886]
[1771209067415,0.46472153,1959.6,1959.0,0.00153886]
[1771209069804,0.46472153,1959.5,1959.0,0.00153886]
[1771209074218,0.46472153,1959.5,1959.1,0.0011]
[1771209074512,0.47681981,1959.3,1959.0,0.0011]
[1771209074692,9.75087365,1959.4,1958.0,0.32790576]
[1771209074693,0.47681981,1959.1,1958.0,0.32790576]
[1771209074891,0.47681981,1959.1,1958.8,0.0011]
[1771209077219,0.47681981,1959.1,1958.0,0.00153886]
[1771209077511,0.47681981,1959.1,1958.0,0.32900576]
[1771209079599,0.47681981,1959.1,1958.1,0.3274669]
[1771209080493,1.15281981,1959.4,1958.2,0.3274669]
[1771209080714,0.676,1959.4,1958.2,0.3274669]
[1771209081012,0.676,1959.4,1958.3,0.3274669]
[1771209081389,0.676,1959.4,1958.4,0.3274669]
[1771209081790,0.001,1959.7,1958.6,0.3274669]
[1771209083535,0.001,1959.7,1958.8,0.3274669]
[1771209083821,0.001,1959.7,1959.0,0.3274669]
[1771209085009,0.001,1959.7,1959.1,9.75087365]
[1771209085195,0.001,1959.7,1959.2,0.3274669]
[1771209085607,0.00153886,1960.0,1959.3,0.3274669]
[1771209086797,0.001,1959.6,1959.3,0.3274669]
[1771209087116,0.00153886,1960.0,1959.3,0.3274669]
[1771209087699,0.00153886,1960.0,1959.3,1.60336978]
[1771209088014,0.00153886,1960.0,1959.4,0.3274669]
[1771209088225,0.00153886,1960.0,1959.5,0.882]
[1771209089497,0.001,1960.2,1959.5,1.2094669]
[1771209089699,0.001,1960.6,1959.8,0.3274669]
[1771209089920,0.001,1960.6,1959.9,9.32865912]
[1771209090324,0.001,1960.6,1959.9,0.3274669]
[1771209090624,0.47781981,1960.6,1959.4,0.919]
[1771209090810,0.47781981,1960.6,1959.5,0.883]
[1771209091006,0.47781981,1960.6,1959.5,1.2104669]
[1771209091210,0.47681981,1960.4,1959.5,1.2104669]
[1771209091725,0.7,1960.5,1959.9,9.32865912]
[1771209091927,0.00153886,1961.0,1960.2,9.00119222]
[1771209092099,0.00153886,1961.0,1960.1,0.3274669]
[1771209093106,0.00153886,1961.0,1959.9,9.00119222]
[1771209093107,0.47681981,1960.9,1959.9,9.00119222]
[1771209093306,0.47835867,1961.0,1960.0,0.886]
[1771209093519,0.00153886,1961.0,1960.1,0.3274669]
[1771209093918,0.00153886,1961.0,1960.1,1.60285015]
[1771209094121,0.47835867,1961.0,1960.0,0.886]
[1771209095028,0.47835867,1961.0,1959.7,0.886]
[1771209096218,0.7,1960.9,1959.7,0.886]
[1771209096406,0.47681981,1960.8,1959.7,0.886]
[1771209098746,0.47781981,1960.7,1959.7,0.886]
[1771209099917,0.47781981,1960.7,1959.7,2.48917074]
[1771209100122,0.001,1960.7,1959.9,0.3274669]
[1771209100511,0.001,1960.7,1960.0,1.2755102]
[1771209100719,0.001,1960.7,1960.1,0.887]
[1771209104016,0.4858346,1960.7,1960.0,0.886]
[1771209104427,0.4848346,1960.5,1960.0,0.886]
[1771209104823,0.4848346,1960.5,1959.6,1.60323097]
[1771209105145,0.4848346,1960.5,1959.9,0.886]
[1771209105343,0.4848346,1960.5,1959.3,0.919]
[1771209105542,0.4848346,1960.5,1959.4,0.886]
[1771209107248,0.4848346,1960.5,1959.4,2.16189016]
[1771209107416,0.4848346,1960.5,1959.4,1.2134669]
[1771209107841,0.4848346,1960.5,1959.4,0.886]
[1771209109442,0.4848346,1960.5,1959.4,2.16189888]
[1771209109617,0.4848346,1960.5,1959.4,0.886]
[1771209109816,0.4848346,1960.5,1959.5,0.0011]
[1771209114839,0.46201909,1960.3,1959.5,0.0011]
[1771209116730,0.46201909,1960.0,1959.5,0.0011]
[1771209118631,0.46201909,1960.0,1959.4,0.0011]
[1771209120328,0.46201909,1959.7,1959.2,0.0011]
[1771209120558,0.46201909,1959.6,1959.2,0.0011]
[1771209120961,0.46201909,1960.0,1959.2,0.0011]
[1771209121467,0.673,1960.4,1959.4,0.3274669]
[1771209121637,0.46201909,1960.5,1959.4,0.3274669]
[1771209122070,0.674,1960.7,1959.5,0.3285669]
[1771209122281,0.001,1960.5,1959.5,0.3285669]
[1771209122571,0.46301909,1960.5,1959.5,0.8851]
[1771209123058,0.46301909,1960.5,1959.5,1.2125669]
[1771209123432,0.46301909,1960.5,1959.6,0.05103082]
[1771209125538,0.001,1960.5,1959.7,0.3274669]
[1771209125731,0.001,1960.5,1959.8,0.05102561]
[1771209126789,0.001,1960.5,1959.8,0.37849251]
[1771209128196,0.001,1960.5,1959.8,1.65410841]
[1771209129092,0.001,1960.5,1959.9,0.3274669]
[1771209129266,0.001,1960.5,1960.0,1.2124669]
[1771209130059,0.001,1960.5,1960.1,0.3274669]
[1771209130268,0.001,1960.7,1960.3,0.3274669]
[1771209130478,0.00153886,1961.0,1960.3,0.3274669]
[1771209132508,0.00153886,1961.0,1960.4,1.60271684]
[1771209132664,0.00153886,1961.0,1960.1,15.02193683]
[1771209132665,0.00153886,1961.0,1960.5,0.886]
[1771209133979,0.001,1960.9,1960.5,0.886]
[1771209136109,0.001,1960.9,1960.5,2.1611648]
[1771209136262,0.001,1960.9,1960.5,0.886]
[1771209138518,0.47774663,1961.7,1960.6,0.3274669]
[1771209138862,0.47774663,1961.7,1960.2,0.919]
[1771209139163,0.47674663,1961.5,1960.0,0.00153886]
[1771209139377,0.47674663,1961.5,1960.0,0.88953886]
[1771209140098,0.47674663,1961.5,1960.0,2.16504615]
[1771209140397,0.47674663,1961.5,1960.0,2.49251305]
[1771209140897,0.47674663,1961.5,1960.0,1.21700576]
[1771209141072,0.47674663,1961.5,1960.0,0.88953886]
[1771209141889,0.47674663,1961.2,1960.0,0.88953886]
[1771209145593,0.47674663,1961.2,1960.1,0.0011]
[1771209145897,0.47674663,1961.0,1960.1,0.0011]
[1771209150227,0.47674663,1960.8,1959.8,0.0011]
[1771209150506,0.47674663,1960.5,1959.8,0.0011]
[1771209153989,0.47674663,1960.4,1959.8,0.0011]
[1771209154187,0.47674663,1960.2,1959.8,0.0011]
[1771209154389,0.919,1960.5,1959.8,0.0011]
[1771209154584,0.47674663,1960.4,1959.8,0.0011]
[1771209154788,0.47674663,1960.4,1959.4,0.0011]
[1771209158912,0.47674663,1960.4,1959.6,0.0011]
[1771209162995,10.42888764,1960.5,1959.6,0.0011]
[1771209162996,0.47674663,1960.3,1959.6,0.0011]
[1771209164832,0.47674663,1960.3,1959.4,0.0011]
[1771209166320,10.42888764,1960.5,1959.5,0.3296669]
[1771209166321,1.17106313,1960.5,1959.5,0.3296669]
[1771209166533,0.49806313,1960.4,1959.5,0.3296669]
[1771209167399,0.49806313,1960.4,1959.5,0.0011]
[1771209169856,0.49806313,1960.4,1959.5,0.3296669]
[1771209170015,0.49806313,1960.4,1959.5,0.0011]
[1771209171228,0.49806313,1960.4,1959.6,0.0011]
[1771209171424,0.49906313,1960.3,1959.6,0.0011]
[1771209172599,0.001,1960.3,1959.6,0.3296669]
[1771209175300,0.49906313,1960.3,1959.6,0.0011]
[1771209181341,0.001,1960.3,1959.6,0.0011]
[1771209182842,0.49906313,1960.3,1959.6,0.0011]
[1771209183358,0.49906313,1960.3,1959.4,0.0011]
[1771209184028,0.49906313,1960.3,1959.7,0.0011]
[1771209184358,0.49806313,1960.1,1959.7,0.0011]
[1771209186250,0.49806313,1960.0,1959.4,0.0011]
[1771209186566,0.49806313,1959.7,1959.3,0.0011]
[1771209188932,0.49806313,1959.7,1959.2,0.0011]
[1771209189367,0.49806313,1959.5,1958.7,0.0011]
[1771209190133,0.49806313,1959.3,1958.7,0.0011]
[1771209190558,0.677,1959.4,1958.7,0.0011]
[1771209190952,0.919,1960.1,1959.0,0.33120576]
[1771209190953,0.49806313,1960.0,1959.0,0.33120576]
[1771209192972,1.597,1960.1,1959.1,0.3296669]
[1771209194542,2.06974885,1960.1,1959.1,0.3296669]
[1771209195439,2.06974885,1960.1,1959.2,0.3296669]
[1771209195440,1.597,1960.1,1959.2,0.3296669]
[1771209196263,2.06974885,1960.1,1959.2,0.3296669]
[1771209196961,2.06974885,1960.1,1959.2,0.3307669]
[1771209197165,0.001,1960.0,1959.2,0.3307669]
[1771209198250,0.47374885,1960.0,1959.2,0.0011]
[1771209201166,0.47274885,1959.9,1959.2,0.0011]
[1771209205771,0.47274885,1959.7,1959.2,0.0011]
[1771209207781,0.47274885,1959.5,1959.2,0.0011]
[1771209209162,0.47274885,1959.5,1959.0,0.00263886]
[1771209209357,0.47274885,1959.3,1958.9,0.0011]
[1771209209557,0.47274885,1959.3,1958.7,0.0011]
[1771209209759,0.47274885,1959.1,1958.7,0.0011]
[1771209211387,9.02229819,1959.1,1958.5,0.0011]
[1771209211560,0.47274885,1958.7,1957.7,0.3326669]
[1771209211750,9.02229819,1958.8,1957.7,0.3326669]
[1771209211751,0.47274885,1958.5,1957.7,0.003]
[1771209215279,0.47274885,1958.6,1957.7,0.003]
[1771209215480,0.47274885,1958.4,1957.7,0.003]
[1771209215675,0.47274885,1958.2,1957.7,0.003]
[1771209216490,1.15274885,1958.2,1957.7,0.003]
[1771209216661,0.681,1958.5,1957.7,0.003]
[1771209216855,0.681,1958.5,1957.7,0.3326669]
[1771209217085,0.681,1958.5,1957.7,0.003]
[1771209217287,0.47274885,1958.4,1957.7,0.003]
[1771209218096,0.681,1958.5,1957.7,0.003]
[1771209218097,0.47274885,1958.1,1957.7,0.003]
[1771209218391,1.15474885,1958.5,1957.3,0.3307669]
[1771209218568,0.47274885,1958.4,1957.3,0.3307669]
[1771209219174,0.682,1958.5,1957.4,0.3296669]
[1771209219363,1.15574885,1958.6,1957.4,0.3296669]
[1771209219785,0.47274885,1958.5,1957.4,0.3296669]
[1771209219984,0.47274885,1958.5,1957.3,0.0011]
[1771209220177,0.47274885,1958.4,1957.3,0.0011]
[1771209220771,0.47274885,1958.4,1957.3,0.3307669]
[1771209220976,0.47274885,1958.4,1957.8,0.0011]
[1771209221183,0.001,1958.3,1957.8,0.0011]
[1771209222692,0.47374885,1958.3,1957.8,0.0011]
[1771209223083,0.001,1958.3,1957.8,0.0011]
[1771209227502,0.47247648,1958.3,1957.8,0.0011]
[1771209228796,0.47147648,1958.1,1957.7,0.0011]
[1771209229003,0.47147648,1957.9,1957.5,0.0011]
[1771209230195,0.47147648,1957.8,1957.3,0.0011]
[1771209231584,0.47147648,1957.6,1956.6,1.784]
[1771209232207,0.47147648,1957.4,1956.6,1.784]
[1771209232764,0.47147648,1957.4,1956.1,1.60772002]
[1771209233088,0.47147648,1957.4,1956.4,1.60749349]
[1771209233264,0.683,1957.5,1956.5,1.60743983]
[1771209233468,0.683,1957.5,1956.5,0.3296669]
[1771209233668,0.47147648,1957.4,1956.5,0.3296669]
[1771209233891,0.47147648,1957.4,1957.1,0.0011]
[1771209235199,0.683,1957.5,1957.1,0.0011]
[1771209235403,0.47147648,1957.7,1957.1,0.0011]
[1771209235604,1.15447648,1957.7,1957.1,0.0011]
[1771209236409,0.683,1957.7,1957.1,0.0011]
[1771209237280,9.02329819,1958.3,1957.1,0.3307669]
[1771209237281,0.47147648,1958.1,1957.1,0.3307669]
[1771209237467,0.683,1958.0,1957.1,0.3307669]
[1771209237698,1.15347648,1958.1,1957.1,0.3307669]
[1771209238098,0.47147648,1958.1,1957.1,0.3307669]
[1771209239107,0.001,1958.3,1957.2,0.3296669]
[1771209239273,0.001,1958.3,1957.4,0.3296669]
[1771209239800,0.001,1958.3,1957.6,0.3296669]
[1771209240407,0.001,1958.3,1957.5,1.781]
[1771209240408,0.682,1958.9,1957.8,0.3286669]
[1771209240606,0.47147648,1958.8,1957.5,0.3286669]
[1771209242299,0.47147648,1958.8,1957.6,0.3286669]
[1771209242703,0.683,1958.9,1957.6,0.3286669]
[1771209243481,0.683,1958.9,1957.8,0.3286669]
[1771209244576,0.00153886,1959.0,1957.8,0.3286669]
[1771209245405,0.00153886,1959.0,1957.9,1.60554518]
[1771209245706,0.001,1958.8,1958.0,0.863]
[1771209246111,0.001,1958.8,1958.0,1.1916669]
[1771209246287,0.001,1958.8,1958.1,0.3286669]
[1771209247489,0.001,1958.8,1958.2,1.27668266]
[1771209247696,0.001,1958.8,1958.3,0.3286669]
[1771209250017,0.001,1958.8,1958.0,3.38841869]
[1771209250323,0.001,1958.8,1958.1,0.3286669]
[1771209252015,0.001,1958.8,1958.2,1.27668266]
[1771209252316,0.001,1958.8,1958.3,0.3286669]
[1771209254423,0.001,1958.8,1958.3,1.60525556]
[1771209254596,0.001,1958.8,1958.4,0.87]
[1771209255604,0.001,1958.8,1958.4,1.1986669]
[1771209255918,0.001,1958.8,1958.5,0.3286669]
[1771209256724,0.001,1958.8,1958.4,0.87]
[1771209257296,0.4881705,1958.8,1958.2,0.0011]
[1771209257720,0.4881705,1958.7,1958.2,0.0011]
[1771209258027,0.00153886,1959.0,1958.2,0.47102317]
[1771209258900,0.00153886,1959.0,1958.3,1.27661747]
[1771209259222,0.00153886,1959.0,1958.4,0.46992317]
[1771209259424,0.00153886,1959.0,1958.5,0.874]
[1771209261108,0.00153886,1959.0,1958.5,2.15048447]
[1771209261310,0.00153886,1959.0,1958.5,2.62040764]
[1771209261913,0.00153886,1959.0,1958.5,1.34392317]
[1771209263309,0.4871705,1959.6,1958.6,0.46992317]
[1771209263629,0.001,1959.8,1958.5,2.15046244]
[1771209263630,0.4881705,1959.8,1958.8,0.46992317]
[1771209263809,0.4881705,1959.8,1958.9,1.34492317]
[1771209264210,0.001,1959.8,1959.0,0.46992317]
[1771209265308,0.001,1959.8,1959.2,0.46992317]
[1771209265540,0.00253886,1960.0,1959.5,0.46992317]
[1771209265745,0.00253886,1960.0,1959.6,0.919]
[1771209265909,0.00253886,1960.0,1959.7,0.876]
[1771209266110,0.001,1960.3,1959.8,0.46992317]
[1771209266310,0.4871705,1960.8,1959.8,0.46992317]
[1771209267525,0.4871705,1960.8,1959.9,1.27557528]
[1771209267944,0.48870936,1961.0,1960.0,0.46992317]
[1771209268146,0.48870936,1961.0,1960.1,1.34792317]
[1771209268440,0.00153886,1961.0,1960.2,0.46992317]
[1771209269142,0.4871705,1961.3,1960.2,0.46992317]
[1771209269443,0.4871705,1961.3,1960.4,0.46992317]
[1771209269619,0.4871705,1961.3,1960.5,0.88]
[1771209270020,0.001,1960.7,1960.5,0.88]
[1771209270224,0.4871705,1961.3,1960.5,0.88]
[1771209270841,0.4871705,1961.5,1960.5,1.34992317]
[1771209271049,0.4881705,1961.7,1960.6,0.46992317]
[1771209271257,0.001,1961.7,1960.9,0.46992317]
[1771209271456,0.001,1961.7,1961.0,0.882]
[1771209274062,0.4881705,1961.7,1960.7,11.01651924]
[1771209274353,0.4881705,1961.7,1960.8,1.8]
[1771209274721,0.001,1961.7,1960.8,2.26992317]
[1771209274928,0.001,1961.7,1960.9,0.46992317]
[1771209275738,0.001,1961.7,1960.8,1.8]
[1771209275944,0.4881705,1961.7,1960.9,0.881]
[1771209277167,0.4881705,1961.7,1961.0,0.882]
[1771209281863,0.4871705,1961.5,1960.4,0.919]
[1771209282065,0.7,1961.6,1960.6,0.46992317]
[1771209282273,0.7,1961.6,1961.1,0.001]
[1771209282566,0.4882705,1961.6,1961.1,0.001]
[1771209283069,0.0011,1961.6,1961.1,0.001]
[1771209283268,0.0011,1961.6,1961.1,0.47092317]
[1771209284482,0.0011,1961.6,1961.2,1.77368583]
[1771209284778,0.0011,1961.6,1961.1,6.01814088]
[1771209284779,0.0011,1961.6,1961.1,0.919]
[1771209284963,0.0011,1961.6,1961.2,0.883]
[1771209286370,0.0011,1961.6,1961.2,0.884]
[1771209288464,0.49114199,1961.6,1961.1,0.001]
[1771209288677,0.49114199,1961.6,1961.1,0.884]
[1771209289087,0.0011,1961.6,1961.1,0.884]
[1771209291371,0.49114199,1961.6,1961.1,0.001]
[1771209291684,0.49114199,1961.6,1961.1,0.884]
[1771209293989,0.001,1961.8,1961.1,2.64338309]
[1771209295371,0.001,1961.8,1961.2,0.48459023]
[1771209295691,0.001,1961.8,1961.2,0.001]
[1771209295863,0.0011,1961.5,1961.3,0.918]
[1771209296058,0.0011,1961.6,1961.3,0.918]
[1771209296262,0.001,1961.8,1961.3,0.918]
[1771209298297,0.001,1961.8,1961.3,2.19265961]
[1771209299272,0.001,1961.8,1961.3,0.918]
[1771209300293,0.001,1961.8,1961.3,2.67723235]
[1771209300518,0.001,1962.1,1961.6,9.74150481]
[1771209300669,0.001,1962.3,1961.7,1.36859023]
[1771209301001,0.001,1962.5,1961.7,1.36859023]
[1771209301576,0.49104199,1962.9,1962.2,9.74150481]
[1771209301780,0.001,1962.9,1962.3,0.885]
[1771209302179,0.001,1962.9,1961.5,0.48459023]
[1771209302387,0.001,1962.9,1961.6,0.888]
[1771209304507,0.49004199,1962.8,1961.6,0.888]
[1771209305801,0.49004199,1962.6,1961.6,0.888]
[1771209306705,0.49004199,1962.6,1961.7,0.48459023]
[1771209308396,0.49104199,1962.8,1961.9,0.48459023]
[1771209308593,0.001,1962.8,1962.1,0.48459023]
[1771209309002,0.49104199,1962.8,1961.7,1.27435588]
[1771209309195,0.49104199,1962.8,1961.2,5.09989915]
[1771209309196,0.49104199,1962.8,1961.4,1.75914296]
[1771209309426,0.49104199,1962.8,1961.5,1.811]
[1771209310625,0.49004199,1962.7,1961.5,1.811]
[1771209311132,0.49004199,1962.6,1961.5,1.811]
[1771209312013,0.49004199,1962.6,1961.5,3.08550866]
[1771209312433,0.49004199,1962.6,1961.5,3.57009889]
[1771209312633,0.49004199,1962.6,1961.5,3.57012121]
[1771209313314,0.001,1962.8,1961.9,9.74150481]
[1771209313513,0.001,1962.8,1962.0,0.902]
[1771209313749,0.001,1962.8,1962.0,1.353522]
[1771209314250,0.46588695,1962.8,1962.0,0.902]
[1771209315142,0.46588695,1962.8,1962.0,2.17620228]
[1771209315547,0.001,1962.8,1962.0,2.62772428]
[1771209316250,0.001,1962.8,1962.0,0.902]
[1771209316416,0.001,1962.8,1962.0,2.62772568]
[1771209316726,0.001,1962.8,1962.0,1.353522]
[1771209316918,0.001,1962.8,1962.0,2.62772862]
[1771209317516,0.001,1962.8,1962.1,0.451522]
[1771209317720,0.001,1962.8,1962.2,0.918]
[1771209317721,0.46588695,1962.8,1962.2,0.918]
[1771209318234,0.46588695,1962.8,1962.1,0.905]
[1771209319218,0.46488695,1962.6,1962.1,0.905]
[1771209319421,0.46488695,1962.6,1961.8,0.918]
[1771209319624,0.46488695,1962.6,1961.8,0.919]
[1771209319823,0.46488695,1962.6,1961.5,0.906]
[1771209320025,0.46488695,1962.6,1961.7,0.001]
[1771209320026,0.46488695,1962.5,1961.7,0.001]
[1771209322124,0.46488695,1962.4,1961.7,0.001]
[1771209323557,0.46488695,1962.3,1961.7,0.001]
[1771209329153,1.38288695,1962.3,1961.7,0.001]
[1771209329455,0.46488695,1962.2,1961.7,0.001]
[1771209330452,0.918,1962.3,1961.7,0.001]
[1771209330841,1.14088695,1962.4,1961.7,0.001]
[1771209331052,0.677,1962.5,1961.7,0.001]
[1771209331441,1.16598695,1962.7,1961.7,0.452522]
[1771209331657,1.84198695,1962.7,1961.7,0.452522]
[1771209332145,1.16598695,1962.7,1961.7,0.452522]
[1771209332348,0.46488695,1962.6,1961.8,0.001]
[1771209332679,0.46598695,1962.3,1961.8,0.001]
[1771209333976,0.0011,1962.3,1961.8,0.001]
[1771209334846,0.46488695,1962.2,1961.5,0.001]
[1771209335043,0.0011,1962.3,1961.5,0.001]
[1771209335273,0.0011,1962.3,1961.5,0.452522]
[1771209337384,0.46598695,1962.3,1961.5,0.001]
[1771209337579,0.0011,1962.3,1961.5,0.452522]
[1771209339801,0.46598695,1962.3,1961.5,0.001]
[1771209342106,0.0011,1962.3,1961.5,0.452522]
[1771209343885,0.0011,1962.3,1961.5,0.001]
[1771209344291,0.46223369,1962.3,1961.5,0.001]
[1771209345793,0.46223369,1962.3,1961.6,0.001]
[1771209346005,0.0011,1962.2,1961.6,0.001]
[1771209346184,0.45936719,1962.1,1961.2,0.001]
[1771209346388,0.45936719,1962.1,1961.3,0.001]
[1771209347791,0.45936719,1961.9,1961.3,0.001]
[1771209348512,0.45936719,1961.7,1961.3,0.001]
[1771209349408,0.45936719,1961.6,1961.1,0.001]
[1771209354017,1.15936719,1961.8,1961.1,0.001]
[1771209355110,0.45936719,1961.7,1961.1,0.001]
[1771209358321,0.45936719,1961.7,1961.2,0.001]
[1771209358512,0.0011,1961.6,1961.2,0.001]